bitfinex/quotes_ETHUSD_20250519
["timestamp","ask_amount","ask_price","bid_price","bid_amount"]
[1747696579369,3.97413492,2516.3,2516.1,8.7193]
[1747696579930,3.97380783,2516.5,2516.1,8.7193]
[1747696580119,3.97413353,2516.3,2516.1,8.7193]
[1747696580324,3.97413353,2516.3,2516.2,0.87193]
[1747696585344,3.97481626,2515.9,2515.6,8.0]
[1747696585545,3.97503676,2515.8,2515.7,15.917]
[1747696585978,3.97503676,2515.8,2515.7,16.711]
[1747696586273,3.97479222,2515.9,2515.7,16.711]
[1747696587087,3.97394685,2516.4,2515.7,16.711]
[1747696587249,4.74294429,2516.6,2515.9,0.794]
[1747696587454,3.97377309,2516.5,2515.9,0.794]
[1747696587682,3.97450977,2516.1,2515.9,0.794]
[1747696588349,3.97414887,2516.3,2515.9,0.794]
[1747696588685,3.97441795,2516.1,2516.0,16.16251]
[1747696591894,3.97382469,2516.5,2516.0,20.94712643]
[1747696592062,3.97424688,2516.2,2516.1,0.8101]
[1747696593906,3.97440483,2516.1,2516.0,8.0]
[1747696594055,3.97440483,2516.1,2516.0,15.915]
[1747696594989,3.97440483,2516.1,2516.0,8.0]
[1747696595292,3.97432794,2516.2,2516.1,0.8272]
[1747696595594,3.97412847,2516.3,2516.1,0.8272]
[1747696595755,3.97412847,2516.3,2516.1,8.8272]
[1747696595959,3.97402492,2516.4,2516.1,8.8272]
[1747696596167,3.97402492,2516.4,2516.2,1.770931]
[1747696596653,0.005,2516.7,2516.2,1.770931]
[1747696596654,0.005,2516.7,2516.3,2.8595]
[1747696596869,0.005,2517.2,2516.8,3.97329942]
[1747696597054,0.005,2517.2,2516.8,46.63734528]
[1747696597274,0.005,2517.2,2517.1,4.78232587]
[1747696598072,0.005,2517.2,2517.1,5.15204414]
[1747696598308,0.005,2517.2,2517.1,5.70204414]
[1747696598506,0.005,2517.2,2517.1,1.17921827]
[1747696598820,0.005,2517.2,2517.1,1.69443118]
[1747696599370,0.005,2517.2,2517.1,5.66725705]
[1747696600111,0.005,2517.2,2517.1,1.69443118]
[1747696600308,0.005,2517.2,2517.1,9.69443118]
[1747696600610,0.005,2517.2,2517.1,23.56443118]
[1747696600822,0.005,2517.2,2517.1,28.08725705]
[1747696601311,0.005,2517.2,2517.1,24.11443118]
[1747696601698,0.005,2517.2,2517.1,9.69443118]
[1747696602024,0.005,2517.2,2517.1,17.59543118]
[1747696604832,0.005,2517.7,2517.6,3.97203686]
[1747696605030,0.005,2518.5,2518.3,0.55]
[1747696605190,0.005,2518.5,2518.4,33.051]
[1747696606105,0.005,2518.5,2518.4,25.051]
[1747696606429,0.005,2518.5,2518.4,26.4240133]
[1747696608006,4.80511743,2518.5,2518.4,17.151]
[1747696609567,3.97089369,2518.4,2518.2,7.899]
[1747696609728,0.05,2518.9,2518.8,4.75284451]
[1747696609927,0.05,2518.9,2518.8,33.8297]
[1747696610125,0.05,2518.9,2518.8,33.99903721]
[1747696610331,0.05,2518.9,2518.8,37.9278927]
[1747696610510,0.05,2518.9,2518.8,30.0288927]
[1747696610705,0.05,2518.9,2518.8,25.148]
[1747696610922,0.05,2518.9,2518.8,39.232681]
[1747696611128,0.05,2518.9,2518.8,40.97534451]
[1747696611957,0.05,2518.9,2518.8,33.8453]
[1747696612418,0.05,2518.9,2518.8,37.81544451]
[1747696612623,0.05,2518.9,2518.8,41.59698896]
[1747696613318,0.05,2518.9,2518.8,25.045]
[1747696613554,0.05,2518.9,2518.8,17.148]
[1747696614069,0.05,2518.9,2518.8,21.88004451]
[1747696614568,0.05,2518.9,2518.8,43.85409251]
[1747696615158,0.05,2518.9,2518.8,44.2223648]
[1747696615457,0.05,2518.9,2518.8,48.3205575]
[1747696615955,0.05,2518.9,2518.8,40.0017455]
[1747696616741,8.0,2520.4,2518.8,40.0017455]
[1747696616742,0.05,2520.9,2519.8,12.79796893]
[1747696616951,0.8193,2520.8,2519.9,25.037]
[1747696617258,3.96743227,2520.6,2520.0,2.58664]
[1747696617578,0.8193,2520.8,2520.0,2.58664]
[1747696617757,3.96793905,2520.2,2520.1,7.895]
[1747696618077,3.96825396,2520.0,2519.9,17.142]
[1747696618259,3.96825396,2520.0,2519.9,25.037]
[1747696618631,3.96825396,2520.0,2519.9,17.142]
[1747696618853,4.84382031,2520.0,2519.9,17.142]
[1747696619930,3.96951413,2519.2,2519.1,17.138]
[1747696620236,3.96951413,2519.2,2519.1,33.36338129]
[1747696620571,3.9669946,2520.8,2520.1,8.0]
[1747696620725,3.9669946,2520.8,2519.3,0.55]
[1747696620726,3.9669946,2520.8,2520.2,8.183]
[1747696620931,3.96762418,2520.4,2520.3,8.183]
[1747696621132,4.78711216,2520.3,2520.2,8.183]
[1747696621548,3.96808814,2520.2,2520.1,8.183]
[1747696622342,3.96793905,2520.2,2520.1,8.183]
[1747696623403,3.96793905,2520.2,2520.1,8.182]
[1747696623527,3.9680965,2520.1,2520.0,8.182]
[1747696623727,0.8193,2520.1,2519.8,8.182]
[1747696623932,3.96825396,2520.0,2519.8,8.182]
[1747696624131,3.96841144,2519.9,2519.2,0.4648354]
[1747696624349,3.96904147,2519.5,2519.4,8.182]
[1747696625781,3.96935656,2519.3,2519.2,0.4648354]
[1747696625951,3.96935656,2519.3,2519.2,8.6468354]
[1747696626151,3.96935656,2519.3,2519.2,8.182]
[1747696627047,3.96935656,2519.3,2519.2,8.51336813]
[1747696627568,3.96935656,2519.3,2519.2,0.33136813]
[1747696629183,3.96951413,2519.2,2519.1,25.32]
[1747696630186,3.9696717,2519.1,2518.4,1.2772354]
[1747696630483,3.96990615,2519.0,2518.7,8.182]
[1747696630685,3.96935656,2519.3,2518.8,8.0]
[1747696630909,3.96960731,2519.2,2518.8,8.0]
[1747696631056,3.96960731,2519.2,2518.9,2.09748699]
[1747696632190,3.96982929,2519.0,2518.8,8.0]
[1747696632393,3.96998689,2518.9,2518.8,8.0]
[1747696632894,3.96998689,2518.9,2518.8,8.37059533]
[1747696634588,3.96952508,2519.2,2518.8,8.37059533]
[1747696634589,3.96968547,2519.1,2518.8,8.37059533]
[1747696634789,3.96982929,2519.0,2518.9,1.65525953]
[1747696634996,3.96906644,2519.5,2518.8,8.37059533]
[1747696635361,3.969757,2519.1,2518.8,8.37059533]
[1747696636376,3.969757,2519.1,2518.9,0.37059533]
[1747696636696,3.96982929,2519.0,2518.9,0.37059533]
[1747696639373,3.96982929,2519.0,2518.9,8.55259533]
[1747696641380,3.96982929,2519.0,2518.9,8.182]
[1747696641777,3.97061743,2518.5,2518.4,8.4648354]
[1747696642000,3.97061743,2518.5,2518.4,11.27010708]
[1747696642595,3.97061743,2518.5,2518.4,11.64230853]
[1747696642987,3.97061743,2518.5,2518.4,9.02003685]
[1747696643562,3.97061743,2518.5,2518.4,8.183]
[1747696644381,3.97077509,2518.4,2518.3,17.136]
[1747696644582,3.97077509,2518.4,2518.3,25.319]
[1747696649370,3.97077509,2518.4,2518.3,8.183]
[1747696649970,5.1619629,2518.4,2518.3,8.183]
[1747696650402,5.9939629,2518.4,2518.3,8.183]
[1747696651175,3.97109046,2518.2,2518.1,0.05]
[1747696655619,4.78089046,2518.2,2518.1,0.05]
[1747696656177,12.78089046,2518.2,2518.1,0.05]
[1747696656396,14.85315303,2518.2,2518.1,0.05]
[1747696659490,4.78089046,2518.2,2518.1,0.05]
[1747696659811,12.78089046,2518.2,2518.1,0.05]
[1747696663605,3.97266804,2517.2,2517.1,8.211]
[1747696664999,3.97266804,2517.2,2517.1,0.05]
[1747696666308,11.97266804,2517.2,2517.1,0.05]
[1747696666507,13.56718855,2517.2,2517.1,0.05]
[1747696666904,14.34288855,2517.2,2517.1,0.05]
[1747696684757,18.52188855,2517.2,2517.1,0.05]
[1747696684942,14.34288855,2517.2,2517.1,0.05]
[1747696685720,22.32588855,2517.2,2517.1,0.05]
[1747696686432,14.34288855,2517.2,2517.1,0.05]
[1747696691664,15.90543209,2517.2,2517.1,0.05]
[1747696696280,23.88943209,2517.2,2517.1,0.05]
[1747696700274,20.08443209,2517.2,2517.1,0.05]
[1747696700608,20.08443209,2517.2,2516.1,0.8781]
[1747696700609,3.97424688,2516.2,2516.1,0.05]
[1747696700807,11.97424688,2516.2,2516.1,0.05]
[1747696702111,3.97424688,2516.2,2516.1,0.05]
[1747696703606,3.97424688,2516.2,2516.1,0.8057]
[1747696710491,3.97424688,2516.2,2516.1,0.05]
[1747696712721,3.97424688,2516.2,2516.1,0.8276]
[1747696713422,3.97424688,2516.2,2516.1,1.71036]
[1747696713796,3.97424688,2516.2,2516.1,0.8276]
[1747696714003,3.97424688,2516.2,2516.1,1.20191754]
[1747696720527,3.97424688,2516.2,2516.1,0.8276]
[1747696724443,3.97424688,2516.2,2516.1,1.20210226]
[1747696726866,3.97424688,2516.2,2516.1,1.32621862]
[1747696727462,3.97424688,2516.2,2516.1,1.20210226]
[1747696731766,3.97424688,2516.2,2516.1,0.42450226]
[1747696732124,3.97424688,2516.2,2516.1,0.54861957]
[1747696732326,3.97424688,2516.2,2516.1,2.30262153]
[1747696742393,3.97424688,2516.2,2516.1,1.37631957]
[1747696744466,3.97424688,2516.2,2516.1,9.29631957]
[1747696748254,3.97424688,2516.2,2516.1,8.46861957]
[1747696748677,3.97424688,2516.2,2516.1,8.46861343]
[1747696748879,3.97424688,2516.2,2516.1,0.54861343]
[1747696749079,5.23282721,2516.2,2516.1,0.54861343]
[1747696749285,13.23282721,2516.2,2516.1,0.42450226]
[1747696749772,13.23282721,2516.2,2516.1,0.05]
[1747696752202,12.46642721,2516.2,2516.1,0.05]
[1747696752416,11.97424688,2516.2,2516.1,0.05]
[1747696770427,12.75484688,2516.2,2516.1,0.05]
[1747696777576,3.97424688,2516.2,2516.1,7.96]
[1747696777735,3.97424688,2516.2,2516.1,8.7417]
[1747696777922,3.97424688,2516.2,2516.1,9.61587]
[1747696778118,3.97424688,2516.2,2516.1,9.73997317]
[1747696778958,3.97416227,2516.3,2516.2,0.7817]
[1747696779457,3.97369215,2516.6,2516.2,0.90580317]
[1747696779753,3.97375742,2516.6,2516.4,0.7817]
[1747696779998,0.7745,2517.7,2516.4,0.7817]
[1747696780254,3.97316515,2516.9,2516.4,0.7817]
[1747696780435,3.97316515,2516.9,2516.3,5.48339327]
[1747696780436,3.97316515,2516.9,2516.6,0.7817]
[1747696780751,3.97316515,2516.9,2516.8,0.7817]
[1747696780952,3.97316515,2516.9,2516.8,0.99327317]
[1747696781273,3.97316515,2516.9,2516.8,1.77497317]
[1747696781453,3.97316515,2516.9,2516.8,2.14881657]
[1747696781958,3.97316515,2516.9,2516.8,2.0247134]
[1747696782457,3.97316515,2516.9,2516.8,0.7817]
[1747696794059,3.97314156,2516.9,2516.8,0.7817]
[1747696796972,3.97329942,2516.8,2516.7,7.91]
[1747696801347,3.97329942,2516.8,2516.7,8.7358]
[1747696801542,3.97329942,2516.8,2516.7,9.60938]
[1747696802370,3.97329942,2516.8,2516.7,8.7358]
[1747696804675,3.97322644,2516.9,2516.7,8.7358]
[1747696804864,3.97329942,2516.8,2516.7,8.7358]
[1747696805083,3.97061743,2518.5,2517.1,0.8258]
[1747696805290,3.97171381,2517.9,2517.4,0.8258]
[1747696805486,3.97175692,2517.8,2517.6,0.7943]
[1747696805683,3.97083423,2518.4,2517.7,8.6863]
[1747696805864,3.97156644,2517.9,2517.7,8.6863]
[1747696806367,3.97156644,2517.9,2517.8,0.12401339]
[1747696806564,3.97156644,2517.9,2517.8,1.00504473]
[1747696808101,0.7633,2518.7,2517.8,1.37725651]
[1747696808263,3.97077461,2518.5,2517.9,0.7943]
[1747696808596,4.82163527,2518.9,2518.0,0.12401339]
[1747696808597,3.97124816,2518.1,2518.0,0.12401339]
[1747696808808,3.97124816,2518.1,2518.0,1.14116904]
[1747696809668,3.97124816,2518.1,2518.0,1.01715565]
[1747696809882,3.97140587,2518.0,2517.9,0.7943]
[1747696814902,3.9715636,2517.9,2517.8,8.88103134]
[1747696817306,3.9715636,2517.9,2517.7,16.6812]
[1747696817307,3.97172134,2517.8,2517.7,16.6812]
[1747696818604,3.97150432,2518.0,2517.7,16.6812]
[1747696818815,3.97157951,2517.9,2517.8,8.0]
[1747696818974,3.97105415,2518.3,2517.8,0.7859]
[1747696819183,3.97014451,2518.8,2518.0,0.7859]
[1747696819500,3.97095956,2518.3,2518.0,0.7859]
[1747696819698,3.97117221,2518.2,2518.0,0.7859]
[1747696819895,3.97095956,2518.3,2518.0,0.7859]
[1747696820076,3.97122827,2518.2,2518.0,0.7859]
[1747696820277,3.97122827,2518.2,2518.1,0.245369]
[1747696820729,3.97122827,2518.2,2518.1,1.054469]
[1747696820878,3.97100443,2518.3,2518.1,1.054469]
[1747696821193,3.97100443,2518.3,2518.2,15.889]
[1747696824587,3.9708493,2518.4,2518.2,15.889]
[1747696824906,3.9708493,2518.4,2518.3,1.66981]
[1747696826416,3.9708493,2518.4,2518.2,15.889]
[1747696826417,3.97093277,2518.3,2518.2,15.889]
[1747696827987,3.97093277,2518.3,2518.2,7.889]
[1747696829383,3.97093277,2518.3,2517.9,8.0]
[1747696829583,3.97140587,2518.0,2517.9,7.888]
[1747696834817,3.97140587,2518.0,2517.9,8.0120229]
[1747696835119,3.97140587,2518.0,2517.9,8.3847686]
[1747696836517,3.97140587,2518.0,2517.9,9.1993686]
[1747696836725,3.97140587,2518.0,2517.9,10.11930546]
[1747696837393,3.97140587,2518.0,2517.9,8.3847686]
[1747696843832,3.97117641,2518.2,2517.9,9.1839686]
[1747696844029,3.97099269,2518.3,2518.0,0.4967686]
[1747696844601,3.97109046,2518.2,2518.1,0.1240229]
[1747696844793,3.97099197,2518.3,2518.1,1.04241976]
[1747696844998,3.97099197,2518.3,2518.2,0.1240229]
[1747696845229,3.97099197,2518.3,2518.2,0.4967686]
[1747696845400,3.97085146,2518.4,2518.2,1.2959686]
[1747696845593,0.8546,2518.9,2518.2,1.2959686]
[1747696845594,3.97062713,2518.5,2518.2,1.2959686]
[1747696845832,3.97062713,2518.5,2518.3,0.34545945]
[1747696846036,3.97062713,2518.5,2518.4,7.877]
[1747696846201,3.97062713,2518.5,2518.4,8.0010229]
[1747696846534,3.97062713,2518.5,2518.4,16.0010229]
[1747696846933,3.97062713,2518.5,2518.4,16.3737686]
[1747696847134,3.97062713,2518.5,2518.4,18.11320911]
[1747696851959,3.97038812,2518.7,2518.5,0.7992]
[1747696852701,3.97038812,2518.7,2518.6,0.3727457]
[1747696853002,3.97038812,2518.7,2518.6,0.49672526]
[1747696855038,3.97020207,2518.8,2518.6,0.49672526]
[1747696855239,3.97030213,2518.7,2518.6,0.49672526]
[1747696855445,3.97030213,2518.7,2518.6,0.3727457]
[1747696855742,3.97022679,2518.8,2518.6,0.3727457]
[1747696855932,3.97022679,2518.8,2518.6,0.49671936]
[1747696856140,3.97022679,2518.8,2518.7,0.3727457]
[1747696856310,3.97022679,2518.8,2518.7,1.4263113]
[1747696856512,3.97014451,2518.8,2518.7,1.4263113]
[1747696857250,0.05,2518.9,2518.7,1.4263113]
[1747696857410,0.05,2518.9,2518.8,0.83]
[1747696857608,4.01998689,2518.9,2518.8,0.83]
[1747696857838,4.01998689,2518.9,2518.8,1.05563113]
[1747696858043,0.05,2518.9,2518.8,1.55235049]
[1747696858815,0.05,2518.9,2518.8,9.346785]
[1747696859645,0.05,2518.9,2518.8,1.55135049]
[1747696860214,4.01998689,2518.9,2518.8,1.55135049]
[1747696861444,0.05,2518.9,2518.8,1.55135049]
[1747696862019,4.01998689,2518.9,2518.8,1.55135049]
[1747696864757,4.01998689,2518.9,2518.8,0.49671936]
[1747696864920,4.01998689,2518.9,2518.8,8.37071936]
[1747696865270,4.01998689,2518.9,2518.8,8.2467457]
[1747696865414,0.05,2518.9,2518.8,16.6586]
[1747696865618,4.01998689,2518.9,2518.8,18.37098413]
[1747696865913,4.01998689,2518.9,2518.8,17.58638413]
[1747696866114,0.05,2518.9,2518.8,17.58638413]
[1747696866816,0.05,2518.9,2518.8,17.71033985]
[1747696867019,0.05,2518.9,2518.8,7.874]
[1747696867218,0.05,2518.9,2518.8,9.16706027]
[1747696867722,4.01998689,2518.9,2518.8,1.29306027]
[1747696867948,4.01998689,2518.9,2518.6,0.7846]
[1747696867949,3.9702622,2518.8,2518.6,0.7846]
[1747696868252,4.02006239,2518.9,2518.7,7.862]
[1747696868555,3.97014451,2518.8,2518.7,7.862]
[1747696869424,3.9702019,2518.8,2518.7,7.862]
[1747696870656,3.9702019,2518.8,2518.7,8.23417952]
[1747696875256,3.9702019,2518.8,2518.7,0.37217952]
[1747696875576,5.62460349,2518.8,2518.7,0.37217952]
[1747696875861,3.97061743,2518.5,2518.4,25.004]
[1747696876222,4.74041743,2518.5,2518.4,25.004]
[1747696882771,3.97061743,2518.5,2518.4,25.004]
[1747696883768,3.97061743,2518.5,2518.4,17.142]
[1747696883934,5.95105803,2518.5,2518.4,17.142]
[1747696884375,3.97077509,2518.4,2518.3,7.864]
[1747696884841,11.97077509,2518.4,2518.3,7.864]
[1747696885272,3.97077509,2518.4,2518.3,7.864]
[1747696889074,3.97077509,2518.4,2518.3,8.23625048]
[1747696889777,3.97077509,2518.4,2518.3,0.37225048]
[1747696889961,3.97077509,2518.4,2518.3,8.23625048]
[1747696892084,0.8111,2518.9,2518.3,9.85247553]
[1747696892247,3.97053943,2518.6,2518.3,9.85247553]
[1747696892743,3.97062638,2518.5,2518.3,9.85247553]
[1747696893293,3.97077509,2518.4,2518.3,9.06987553]
[1747696893495,3.97093277,2518.3,2518.2,17.142]
[1747696893647,3.97093277,2518.3,2518.2,25.006]
[1747696894793,3.97093277,2518.3,2518.2,17.51455916]
[1747696894998,3.97093277,2518.3,2518.2,25.37855916]
[1747696895195,4.73203277,2518.3,2518.2,25.37855916]
[1747696896402,4.73203277,2518.3,2518.2,25.006]
[1747696897393,5.60231356,2518.3,2518.2,25.006]
[1747696898559,13.60231356,2518.3,2518.2,25.006]
[1747696901474,12.73203277,2518.3,2518.2,25.006]
[1747696901674,12.73203277,2518.3,2518.2,7.864]
[1747696905314,4.78249046,2518.2,2518.1,0.1]
[1747696908516,12.78249046,2518.2,2518.1,0.1]
[1747696908816,15.01116465,2518.2,2518.1,0.1]
[1747696914222,15.56116465,2518.2,2518.1,0.1]
[1747696920039,3.97235242,2517.4,2517.3,7.854]
[1747696921547,3.97266804,2517.2,2517.1,7.954]
[1747696933747,3.97266804,2517.2,2517.1,8.7361]
[1747696938863,0.7603,2517.8,2517.1,9.60971]
[1747696939162,3.97219049,2517.6,2517.2,0.8154]
[1747696939662,3.97235575,2517.4,2517.3,1.15868987]
[1747696939875,3.97235575,2517.4,2517.3,2.15731986]
[1747696940465,3.97235575,2517.4,2517.3,1.15868987]
[1747696941167,3.97235575,2517.4,2517.3,0.37258987]
[1747696942166,3.97235575,2517.4,2517.3,8.21558987]
[1747696942344,3.97235575,2517.4,2517.3,7.843]
[1747696945263,3.97266804,2517.2,2517.1,0.8979]
[1747696945433,3.97266804,2517.2,2517.1,8.7409]
[1747696946232,3.97266804,2517.2,2517.1,0.8979]
[1747696946433,3.97266804,2517.2,2517.1,8.7409]
[1747696947567,3.97266804,2517.2,2517.1,9.11400338]
[1747696947937,3.97266804,2517.2,2517.1,8.31610338]
[1747696948771,3.97266804,2517.2,2517.1,7.943]
[1747696951374,3.97266804,2517.2,2517.1,8.31617665]
[1747696953475,3.97266804,2517.2,2517.1,0.47317665]
[1747696953677,3.97266804,2517.2,2517.1,8.31617665]
[1747696955590,3.97266804,2517.2,2517.1,7.943]
[1747696956995,3.97266804,2517.2,2517.1,0.1]
[1747696957173,5.1644241,2517.2,2517.1,0.1]
[1747696958183,3.97266804,2517.2,2517.1,0.1]
[1747696960497,3.97266804,2517.2,2517.1,0.8867]
[1747696962562,3.97266804,2517.2,2517.1,1.26030862]
[1747696962768,3.97266804,2517.2,2517.1,0.47360862]
[1747696963908,3.97266804,2517.2,2517.1,0.1]
[1747696965507,3.82266804,2517.2,2517.1,0.1]
[1747696967715,3.82266804,2517.2,2517.1,0.47383228]
[1747696972509,5.8172241,2517.2,2517.1,0.47383228]
[1747696974613,5.8172241,2517.2,2517.1,0.1]
[1747696976544,3.82266804,2517.2,2517.1,0.1]
[1747696977618,3.82266804,2517.2,2517.1,0.47431006]
[1747696981138,3.82266804,2517.2,2517.1,8.30331006]
[1747696983613,4.60706804,2517.2,2517.1,0.47431006]
[1747696984998,4.60706804,2517.2,2517.1,0.1]
[1747696987739,3.82266804,2517.2,2517.1,0.1]
[1747696994349,5.0786541,2517.2,2517.1,0.1]
[1747696996130,5.6286541,2517.2,2517.1,0.1]
[1747696996331,6.4223541,2517.2,2517.1,0.1]
[1747696999954,7.98489764,2517.2,2517.1,0.1]
[1747697001824,15.98489764,2517.2,2517.1,0.1]
[1747697007360,3.97424688,2516.2,2516.1,0.1]
[1747697007864,4.52424688,2516.2,2516.1,0.1]
[1747697008070,6.30993734,2516.2,2516.1,0.1]
[1747697008382,15.87248088,2516.2,2516.1,0.1]
[1747697013437,15.32248088,2516.2,2516.1,0.1]
[1747697013654,12.98033734,2516.2,2516.1,0.1]
[1747697013853,13.53033734,2516.2,2516.1,0.1]
[1747697014262,3.97424688,2516.2,2516.1,0.1]
[1747697014666,4.52424688,2516.2,2516.1,0.1]
[1747697015679,3.97424688,2516.2,2516.1,0.1]
[1747697018174,4.52424688,2516.2,2516.1,0.1]
[1747697018355,5.34464688,2516.2,2516.1,0.1]
[1747697018558,7.99532088,2516.2,2516.1,0.1]
[1747697020063,6.43277734,2516.2,2516.1,0.1]
[1747697020281,5.61237734,2516.2,2516.1,0.1]
[1747697021779,13.61237734,2516.2,2516.1,0.1]
[1747697031689,11.97424688,2516.2,2516.1,0.1]
[1747697032595,3.97424688,2516.2,2516.1,0.9249]
[1747697045302,3.97424688,2516.2,2516.1,0.1]
[1747697060635,3.97424688,2516.2,2516.1,0.47445314]
[1747697065703,3.97424688,2516.2,2516.1,0.1]
[1747697065900,4.84639298,2516.2,2516.1,0.1]
[1747697068556,4.84639298,2516.2,2516.1,0.47491041]
[1747697068856,3.97424688,2516.2,2516.1,0.47491041]
[1747697069026,3.97424688,2516.2,2516.1,1.23091041]
[1747697074213,0.00179312,2517.1,2516.3,0.7679]
[1747697074350,3.9733055,2516.8,2516.5,0.7679]
[1747697074665,3.97316687,2516.9,2516.7,0.7679]
[1747697075162,3.97316687,2516.9,2516.8,0.37491041]
[1747697079035,3.97329942,2516.8,2516.7,0.7679]
[1747697080048,3.97329942,2516.8,2516.7,1.14084409]
[1747697085455,3.97329942,2516.8,2516.7,7.754]
[1747697088567,3.97329942,2516.8,2516.7,8.5054]
[1747697088762,3.97329942,2516.8,2516.7,9.35594]
[1747697089390,3.97323195,2516.9,2516.7,9.35594]
[1747697089596,3.97329942,2516.8,2516.7,9.35594]
[1747697090980,0.00179312,2517.1,2516.7,9.35594]
[1747697090981,3.97466792,2517.1,2516.7,9.35594]
[1747697091176,3.97314156,2516.9,2516.7,9.35594]
[1747697091382,3.97314156,2516.9,2516.8,0.935594]
[1747697096212,3.97314156,2516.9,2516.8,1.30804849]
[1747697100907,3.97314156,2516.9,2516.8,9.06104849]
[1747697102527,3.97314156,2516.9,2516.8,8.12545449]
[1747697112555,4.76974156,2516.9,2516.8,8.10645449]
[1747697120273,12.76974156,2516.9,2516.8,8.10645449]
[1747697120448,13.31974156,2516.9,2516.8,0.37245449]
[1747697121251,3.97361519,2516.6,2516.4,7.734]
[1747697121472,4.77157309,2516.5,2516.4,7.734]
[1747697121969,3.97424688,2516.2,2516.1,0.1]
[1747697122437,3.97424688,2516.2,2516.1,0.47384531]
[1747697125411,3.97417932,2516.3,2516.2,0.8025]
[1747697126266,3.97417932,2516.3,2516.2,1.17634531]
[1747697126456,3.97417932,2516.3,2516.2,2.07737984]
[1747697129194,3.97408894,2516.3,2516.2,2.07737984]
[1747697129492,3.97383758,2516.5,2516.2,2.07737984]
[1747697129493,3.97399538,2516.4,2516.2,2.07737984]
[1747697129687,3.97383758,2516.5,2516.2,2.07737984]
[1747697130697,3.97383758,2516.5,2516.3,0.02014926]
[1747697130893,3.97331531,2516.8,2516.3,0.23990217]
[1747697131056,3.97354834,2516.7,2516.4,0.8095]
[1747697131252,3.97319702,2516.9,2516.5,7.735]
[1747697131493,3.97340216,2516.8,2516.5,7.735]
[1747697131796,3.97361519,2516.6,2516.5,7.735]
[1747697133295,3.97361519,2516.6,2516.5,8.10884531]
[1747697135258,0.00179312,2517.1,2516.5,8.10884531]
[1747697135466,3.9734605,2516.7,2516.5,8.10884531]
[1747697136873,3.9734605,2516.7,2516.6,0.37384531]
[1747697137570,3.9734605,2516.7,2516.6,1.26567984]
[1747697142406,0.00179312,2517.1,2516.6,1.26567984]
[1747697142615,3.97323147,2516.9,2516.7,0.7865]
[1747697143289,3.97329942,2516.8,2516.7,0.7865]
[1747697143803,3.9731501,2516.9,2516.7,0.7865]
[1747697143995,3.9731501,2516.9,2516.7,2.13906329]
[1747697144609,3.97309685,2517.0,2516.7,2.13906329]
[1747697145321,3.97318149,2516.9,2516.7,2.13906329]
[1747697145518,0.00179312,2517.1,2516.7,6.11249617]
[1747697145720,3.97471364,2517.1,2516.8,0.39397159]
[1747697146013,3.97469846,2517.1,2516.8,0.699074]
[1747697146689,3.97469846,2517.1,2516.8,0.67894772]
[1747697147298,3.97469846,2517.1,2516.9,0.37384531]
[1747697147505,3.97469846,2517.1,2517.0,7.716]
[1747697147807,0.00179312,2517.1,2517.0,7.716]
[1747697148194,3.97461899,2517.1,2517.0,7.716]
[1747697148708,0.00179312,2517.1,2517.0,8.08984531]
[1747697149507,0.00179312,2517.1,2517.0,8.9313528]
[1747697150831,55.02909012,2517.1,2517.0,8.9313528]
[1747697153929,59.00191599,2517.1,2517.0,8.9313528]
[1747697154112,55.02909012,2517.1,2517.0,8.08984531]
[1747697166654,59.00191599,2517.1,2517.0,8.08984531]
[1747697173234,55.02909012,2517.1,2517.0,8.08984531]
[1747697173434,59.00191599,2517.1,2517.0,8.08984531]
[1747697176254,59.00191599,2517.1,2517.0,14.04484531]
[1747697181380,59.00191599,2517.1,2517.0,8.08984531]
[1747697181561,63.85560869,2517.1,2517.0,14.04484531]
[1747697182078,63.85560869,2517.1,2517.0,8.08984531]
[1747697183180,59.75741599,2517.1,2517.0,8.08984531]
[1747697184583,59.00191599,2517.1,2517.0,8.08984531]
[1747697203345,55.02909012,2517.1,2517.0,8.08984531]
[1747697208360,55.02909012,2517.1,2517.0,8.91984531]
[1747697208543,55.02909012,2517.1,2517.0,12.89282902]
[1747697208844,55.02909012,2517.1,2517.0,16.95215821]
[1747697209843,55.02909012,2517.1,2517.0,17.57247999]
[1747697211243,59.00191599,2517.1,2517.0,27.51449628]
[1747697211646,59.00191599,2517.1,2517.0,19.51449628]
[1747697213060,59.00191599,2517.1,2517.0,18.8941745]
[1747697214367,55.02909012,2517.1,2517.0,18.8941745]
[1747697215365,55.02909012,2517.1,2517.0,19.36128311]
[1747697215669,59.00191599,2517.1,2517.0,19.36128311]
[1747697215854,59.00191599,2517.1,2517.0,18.53128311]
[1747697216051,59.00191599,2517.1,2517.0,14.47195392]
[1747697217174,59.00191599,2517.1,2517.0,14.00484531]
[1747697217533,55.02909012,2517.1,2517.0,14.00484531]
[1747697218146,59.00191599,2517.1,2517.0,14.00484531]
[1747697218772,55.02909012,2517.1,2517.0,14.00484531]
[1747697219075,59.00191599,2517.1,2517.0,17.2442307]
[1747697220072,59.00191599,2517.1,2517.0,0.37384531]
[1747697220275,59.00191599,2517.1,2517.0,14.00484531]
[1747697220432,59.00191599,2517.1,2517.0,8.04984531]
[1747697220769,59.81831599,2517.1,2517.0,0.37384531]
[1747697220955,71.91650869,2517.1,2517.0,0.37384531]
[1747697221150,77.87150869,2517.1,2517.0,0.37384531]
[1747697222162,77.87150869,2517.1,2516.8,0.46710861]
[1747697222163,4.78954156,2516.9,2516.8,0.46710861]
[1747697222365,12.78954156,2516.9,2516.8,0.46710861]
[1747697223590,3.97377309,2516.5,2516.4,7.676]
[1747697223894,4.79017309,2516.5,2516.4,7.676]
[1747697225904,3.97424688,2516.2,2515.8,0.46710861]
[1747697226070,4.74924688,2516.2,2516.1,0.1]
[1747697227467,4.79892993,2516.2,2516.1,0.1]
[1747697227667,5.78280543,2516.2,2516.1,0.1]
[1747697232401,55.78280543,2516.2,2516.1,0.1]
[1747697233321,53.97424688,2516.2,2516.1,0.1]
[1747697233608,50.0,2516.2,2516.1,0.1]
[1747697234606,53.97424688,2516.2,2516.1,0.1]
[1747697235111,50.0,2516.2,2516.1,0.1]
[1747697235308,50.0,2516.2,2516.1,12.85330483]
[1747697235511,50.0,2516.2,2516.1,14.73433531]